[Event "Czech Juniors Boys 2024"]
[Site "Jaromerice nad Rokytnou"]
[Date "2024.03.10"]
[Round "4.5"]
[White "Jun, Rudolf"]
[Black "Vilimek, Vit"]
[Result "1/2-1/2"]
[ECO "C89"]
[WhiteElo "2243"]
[BlackElo "2061"]
[Annotator "RC"]
[PlyCount "165"]
[EventDate "2024.03.10"]
[EventType "tourn"]
[EventCountry "CZE"]
[SourceTitle "playchess.com"]
[Source "ChessBase"]
[SourceQuality "1"]
[TimeControl "40/5400+30:1800+30"]

1. e4 {[%emt 0:00:03]} e5 {[%emt 0:00:09]} 2. Nf3 {[%emt 0:00:30]} Nc6 {[%emt 0:01:19]} 3. Bb5 {[%emt 0:00:25]} a6 {[%emt 0:01:47]} 4. Ba4 {[%emt 0:00:06]} Nf6 {[%emt 0:00:24]} 5. O-O {[%emt 0:00:08]} Be7 {[%emt 0:00:14]} 6. Re1 {[%emt 0:00:23]} b5 {[%emt 0:00:07]} 7. Bb3 {[%emt 0:00:07]} O-O {[%emt 0:00:04]} 8. c3 {[%emt 0:01:00]} d5 {[%emt 0:00:25]} 9. d3 {[%emt 0:01:34]} dxe4 {[%emt 0:03:44]} 10. dxe4 {[%emt 0:00:12]} Qxd1 {[%emt 0:00:02]} 11. Bxd1 {[%emt 0:00:32]} Bc5 {[%emt 0:02:02]} 12. h3 {[%emt 0:00:22]} Bb7 {[%emt 0:00:45]} 13. Bc2 {[%emt 0:00:14]} Rfe8 {[%emt 0:03:28]} 14. Nbd2 {[%emt 0:00:18]} Bf8 {[%emt 0:01:25]} 15. Nb3 {[%emt 0:00:56]} Nd7 {[%emt 0:05:34]} 16. Be3 {[%emt 0:02:08]} Nb6 {[%emt 0:00:02]} 17. Nc5 {[%emt 0:00:53]} Bc8 {[%emt 0:00:03]} 18. b3 {[%emt 0:00:55]} Nd7 {[%emt 0:00:37]} 19. Nd3 {[%emt 0:01:01]} Na5 {[%emt 0:01:35]} 20. a4 {[%emt 0:01:28]} Bb7 {[%emt 0:00:18]} 21. axb5 {[%emt 0:02:33]} axb5 {[%emt 0:00:03]} 22. Ra2 {[%emt 0:01:35]} c5 {[%emt 0:04:54]} 23. Nxc5 {[%emt 0:06:07]} Nxc5 {[%emt 0:04:02]} 24. b4 {[%emt 0:02:19]} Nxe4 {[%emt 0:02:18]} 25. Bxe4 {[%emt 0:00:07]} Bxe4 {[%emt 0:00:03]} 26. Rxa5 {[%emt 0:00:48]} Bc6 {[%emt 0:02:13]} 27. Rxa8 {[%emt 0:00:47]} Bxa8 {[%emt 0:00:05]} 28. Ra1 {[%emt 0:00:24]} f6 {[%emt 0:01:14]} 29. Ra5 {[%emt 0:00:15]} Bc6 {[%emt 0:01:07]} 30. Nd2 {[%emt 0:00:27]} Ra8 {[%emt 0:06:36]} 31. f3 {[%emt 0:05:30]} Bd6 {[%emt 0:03:08]} 32. Kf2 {[%emt 0:00:20]} Bc7 {[%emt 0:00:48]} 33. Rxa8+ {[%emt 0:00:06]} Bxa8 {[%emt 0:00:00]} 34. c4 {[%emt 0:00:08]} bxc4 {[%emt 0:00:06]} 35. Nxc4 {[%emt 0:00:05]} Bd5 {[%emt 0:01:04]} 36. Nb6 {[%emt 0:04:56]} Bc6 {[%emt 0:00:08]} 37. Nc8 {[%emt 0:00:28]} Bb7 {[%emt 0:02:03]} 38. Na7 {[%emt 0:00:57]} Kf7 {[%emt 0:02:37]} 39. Nb5 {[%emt 0:00:53]} Bb8 {[%emt 0:01:53]} 40. Ba7 {[%emt 0:00:02]} Bxa7+ {[%emt 0:00:32]} 41. Nxa7 {[%emt 0:30:02]} Ke6 {[%emt 0:30:08]} 42. Nb5 {[%emt 0:00:10]} g6 {[%emt 0:02:06]} 43. Nc3 {[%emt 0:00:16]} f5 {[%emt 0:02:17]} 44. g3 {[%emt 0:00:30]} g5 {[%emt 0:02:23]} 45. Nb5 {[%emt 0:02:45]} Bc6 {[%emt 0:01:59]} 46. Nc3 {[%emt 0:00:08]} f4 {[%emt 0:02:03]} 47. b5 {[%emt 0:00:57]} Bb7 {[%emt 0:00:34]} 48. Na4 {[%emt 0:00:39]} Kd6 {[%emt 0:03:29]} 49. Nb6 {[%emt 0:01:03]} Bd5 {[%emt 0:01:52]} 50. Na4 {[%emt 0:02:17]} Bb3 {[%emt 0:05:37]} 51. Nc3 {[%emt 0:00:51]} Bc2 {[%emt 0:00:19]} 52. b6 {[%emt 0:01:19]} Kc6 {[%emt 0:08:55]} 53. Nd5 {[%emt 0:00:30]} Bg6 {[%emt 0:01:15]} 54. h4 {[%emt 0:03:28]} fxg3+ {[%emt 0:19:45]} 55. Kxg3 {[%emt 0:00:37]} gxh4+ {[%emt 0:00:02]} 56. Kxh4 {[%emt 0:00:33]} Bf7 {[%emt 0:00:08]} 57. Nf6 {[%emt 0:00:23]} Kxb6 {[%emt 0:00:14]} 58. Nd7+ {[%emt 0:00:06]} Kc7 {[%emt 0:00:21]} 59. Nxe5 {[%emt 0:00:05]} Bd5 {[%emt 0:00:08]} 60. f4 {[%emt 0:00:09]} Be4 {[%emt 0:00:01]} 61. Kg5 {[%emt 0:00:29]} Kd6 {[%emt 0:00:08]} 62. Kf6 {[%emt 0:01:13]} h5 {[%emt 0:01:05]} 63. Kg5 {[%emt 0:00:22]} Ke6 {[%emt 0:00:03]} 64. Nc4 {[%emt 0:00:43]} Bb1 {[%emt 0:02:06]} 65. Ne3 {[%emt 0:00:12]} Bd3 {[%emt 0:00:14]} 66. Kxh5 {[%emt 0:00:10]} Kf6 {[%emt 0:00:10]} 67. Kg4 {[%emt 0:00:10]} Be2+ {[%emt 0:00:01]} 68. Kg3 {[%emt 0:00:07]} Bd3 {[%emt 0:00:06]} 69. Kf3 {[%emt 0:00:10]} Bb1 {[%emt 0:00:42]} 70. Nc4 {[%emt 0:00:25]} Kf5 {[%emt 0:00:00]} 71. Nd6+ {[%emt 0:00:29]} Kf6 {[%emt 0:00:11]} 72. Ne4+ {[%emt 0:00:06]} Bxe4+ {[%emt 0:00:34]} 73. Kxe4 {[%emt 0:00:05]} Ke6 {[%emt 0:00:03]} 74. f5+ {[%emt 0:00:06]} Kf6 {[%emt 0:00:01]} 75. Kf4 {[%emt 0:00:06]} Kf7 {[%emt 0:00:08]} 76. Ke5 {[%emt 0:00:07]} Ke7 {[%emt 0:00:04]} 77. f6+ {[%emt 0:00:03]} Kf7 {[%emt 0:00:04]} 78. Kf5 {[%emt 0:00:04]} Kf8 {[%emt 0:00:06]} 79. Kf4 {[%emt 0:00:04]} Kf7 {[%emt 0:00:07]} 80. Ke5 {[%emt 0:00:04]} Kf8 {[%emt 0:00:13]} 81. Ke6 {[%emt 0:00:03]} Ke8 {[%emt 0:00:04]} 82. f7+ {[%emt 0:00:06]} Kf8 {[%emt 0:00:04]} 83. Kf6 {[%emt 0:00:04]} 1/2-1/2

[Event "Czech Juniors Boys 2024"]
[Site "Jaromerice nad Rokytnou"]
[Date "2024.03.10"]
[Round "4.6"]
[White "Seidl, Jan"]
[Black "Soucek, Petr"]
[Result "1/2-1/2"]
[ECO "E04"]
[WhiteElo "2230"]
[BlackElo "2209"]
[Annotator "RC"]
[PlyCount "61"]
[EventDate "2024.03.10"]
[EventType "tourn"]
[EventCountry "CZE"]
[SourceTitle "playchess.com"]
[Source "ChessBase"]
[SourceQuality "1"]
[TimeControl "40/5400+30:1800+30"]

1. d4 {[%emt 0:00:07]} Nf6 {[%emt 0:00:13]} 2. c4 {[%emt 0:00:42]} e6 {[%emt 0:00:04]} 3. g3 {[%emt 0:00:07]} d5 {[%emt 0:00:54]} 4. Bg2 {[%emt 0:00:11]} dxc4 {[%emt 0:00:28]} 5. Nf3 {[%emt 0:00:20]} a6 {[%emt 0:00:06]} 6. O-O {[%emt 0:01:33]} Nc6 {[%emt 0:00:13]} 7. Nbd2 {[%emt 0:02:11]} Nxd4 {[%emt 0:05:10]} 8. Nxc4 {[%emt 0:00:31]} Nxf3+ {[%emt 0:35:56]} 9. Bxf3 {[%emt 0:00:06]} Be7 {[%emt 0:02:59]} 10. Qb3 {[%emt 0:07:33]} O-O {[%emt 0:00:39]} 11. Rd1 {[%emt 0:01:55]} Qe8 {[%emt 0:00:48]} 12. a4 {[%emt 0:07:16]} Rb8 {[%emt 0:08:35]} 13. Na5 {[%emt 0:09:51]} e5 {[%emt 0:11:06]} 14. Nc6 {[%emt 0:06:39]} Be6 {[%emt 0:00:49]} 15. Nxe7+ {[%emt 0:00:32]} Qxe7 {[%emt 0:00:05]} 16. Qc3 {[%emt 0:00:18]} e4 {[%emt 0:01:50]} 17. Bg2 {[%emt 0:00:22]} h6 {[%emt 0:03:16]} 18. Qe5 {[%emt 0:04:05]} Rfe8 {[%emt 0:04:20]} 19. Bf4 {[%emt 0:11:00]} Bb3 {[%emt 0:03:43]} 20. Qxe7 {[%emt 0:05:49]} Rxe7 {[%emt 0:00:06]} 21. Rd4 {[%emt 0:00:25]} Rbe8 {[%emt 0:01:58]} 22. Rc1 {[%emt 0:06:14]} c6 {[%emt 0:00:10]} 23. a5 {[%emt 0:01:00]} Bd5 {[%emt 0:08:08]} 24. Bd6 {[%emt 0:06:06]} Re6 {[%emt 0:02:47]} 25. Ba3 {[%emt 0:02:05]} Rd8 {[%emt 0:06:49]} 26. Rc3 {[%emt 0:02:14]} Ree8 {[%emt 0:00:34]} 27. Bc5 {[%emt 0:01:43]} Be6 {[%emt 0:00:24]} 28. Rc1 {[%emt 0:01:22]} Rd5 {[%emt 0:00:42]} 29. Rxd5 {[%emt 0:01:46]} cxd5 {[%emt 0:00:11]} 30. Bd4 {[%emt 0:00:05]} Rc8 {[%emt 0:00:34]} 31. Rxc8+ {[%emt 0:01:33]} 1/2-1/2

[Event "Czech Juniors Boys 2024"]
[Site "Jaromerice nad Rokytnou"]
[Date "2024.03.11"]
[Round "5.1"]
[White "Soucek, Petr"]
[Black "Lang, Simon"]
[Result "1-0"]
[ECO "C13"]
[WhiteElo "2209"]
[BlackElo "2043"]
[Annotator "RC"]
[PlyCount "89"]
[EventDate "2024.03.10"]
[EventType "tourn"]
[EventCountry "CZE"]
[SourceTitle "playchess.com"]
[Source "ChessBase"]
[SourceQuality "1"]
[TimeControl "40/5400+30:1800+30"]

1. e4 {[%emt 0:00:15]} e6 {[%emt 0:00:36]} 2. d4 {[%emt 0:00:05]} d5 {[%emt 0:00:34]} 3. Nc3 {[%emt 0:00:04]} Nf6 {[%emt 0:00:44]} 4. Bg5 {[%emt 0:00:07]} dxe4 {[%emt 0:00:32]} 5. Nxe4 {[%emt 0:00:19]} Be7 {[%emt 0:00:13]} 6. Bxf6 {[%emt 0:02:22]} gxf6 {[%emt 0:00:34]} 7. Nf3 {[%emt 0:04:56]} a6 {[%emt 0:01:37]} 8. g3 {[%emt 0:01:09]} b5 {[%emt 0:04:50]} 9. Bg2 {[%emt 0:01:09]} Bb7 {[%emt 0:00:20]} 10. Qe2 {[%emt 0:03:02]} Nd7 {[%emt 0:02:39]} 11. O-O {[%emt 0:00:53]} f5 {[%emt 0:08:08]} 12. Nc3 {[%emt 0:02:52]} O-O {[%emt 0:08:29]} 13. d5 {[%emt 0:12:38]} b4 {[%emt 0:06:10]} 14. dxe6 {[%emt 0:00:38]} bxc3 {[%emt 0:00:31]} 15. exd7 {[%emt 0:06:11]} cxb2 {[%emt 0:01:33]} 16. Rab1 {[%emt 0:00:48]} Qxd7 {[%emt 0:02:00]} 17. Rxb2 {[%emt 0:01:35]} Be4 {[%emt 0:02:29]} 18. Rd1 {[%emt 0:01:20]} Qa4 {[%emt 0:02:12]} 19. c4 {[%emt 0:12:17]} Rad8 {[%emt 0:03:13]} 20. Rbd2 {[%emt 0:00:30]} Rxd2 {[%emt 0:02:39]} 21. Nxd2 {[%emt 0:10:45]} Rd8 {[%emt 0:05:27]} 22. Bxe4 {[%emt 0:03:41]} fxe4 {[%emt 0:00:20]} 23. Rf1 {[%emt 0:03:42]} f5 {[%emt 0:18:31]} 24. Nb3 {[%emt 0:05:10]} Rd3 {[%emt 0:01:33]} 25. Qh5 {[%emt 0:01:10]} Qd7 {[%emt 0:07:22]} 26. Rb1 {[%emt 0:05:27]} Kg7 {[%emt 0:01:54]} 27. Rc1 {[%emt 0:05:49]} h6 {[%emt 0:03:48]} 28. c5 {[%emt 0:01:13]} Bg5 {[%emt 0:01:05]} 29. Re1 {[%emt 0:01:03]} Rf3 {[%emt 0:02:37]} 30. c6 {[%emt 0:01:53]} Qd5 {[%emt 0:01:10]} 31. Qe8 {[%emt 0:01:00]} Rd3 {[%emt 0:02:29]} 32. h4 {[%emt 0:01:07]} Bf6 {[%emt 0:01:09]} 33. Kh2 {[%emt 0:02:05]} a5 {[%emt 0:02:22]} 34. Qc8 {[%emt 0:03:02]} Be5 {[%emt 0:03:22]} 35. Kh3 {[%emt 0:02:03]} a4 {[%emt 0:03:38]} 36. Nc1 {[%emt 0:01:29]} Rf3 {[%emt 0:01:02]} 37. Qd7+ {[%emt 0:01:12]} Qf7 {[%emt 0:00:14]} 38. Kg2 {[%emt 0:00:37]} Rc3 {[%emt 0:00:49]} 39. Rd1 {[%emt 0:00:38]} Rc2 {[%emt 0:02:12]} 40. Rd5 {[%emt 0:01:43]} Bf6 {[%emt 0:00:00]} 41. Qxf5 {[%emt 0:31:58]} Be7 {[%emt 0:10:00]} 42. Qg4+ {[%emt 0:00:00]} Qg6 {[%emt 0:07:27]} 43. Qd7 {[%emt 0:00:00]} Kf6 {[%emt 0:05:30]} 44. h5 {[%emt 0:00:00]} Qh7 {[%emt 0:00:11]} 45. g4 {[%emt 0:00:00]} 1-0

[Event "Czech Juniors Boys 2024"]
[Site "Jaromerice nad Rokytnou"]
[Date "2024.03.11"]
[Round "5.2"]
[White "Vilimek, Vit"]
[Black "Seidl, Jan"]
[Result "1/2-1/2"]
[ECO "B23"]
[WhiteElo "2061"]
[BlackElo "2230"]
[Annotator "RC"]
[PlyCount "93"]
[EventDate "2024.03.10"]
[EventType "tourn"]
[EventCountry "CZE"]
[SourceTitle "playchess.com"]
[Source "ChessBase"]
[SourceQuality "1"]
[TimeControl "40/5400+30:1800+30"]

1. e4 {[%emt 0:00:19]} c5 {[%emt 0:00:05]} 2. Nc3 {[%emt 0:00:04]} d6 {[%emt 0:00:23]} 3. f4 {[%emt 0:00:18]} g6 {[%emt 0:00:53]} 4. Nf3 {[%emt 0:00:17]} Bg7 {[%emt 0:00:13]} 5. d3 {[%emt 0:01:56]} Nc6 {[%emt 0:01:41]} 6. Be3 {[%emt 0:01:25]} e6 {[%emt 0:04:10]} 7. Be2 {[%emt 0:00:55]} Nge7 {[%emt 0:00:56]} 8. O-O {[%emt 0:00:06]} Nd4 {[%emt 0:00:39]} 9. Qd2 {[%emt 0:04:28]} O-O {[%emt 0:04:43]} 10. Nd1 {[%emt 0:01:09]} f5 {[%emt 0:08:59]} 11. c3 {[%emt 0:01:57]} Nxe2+ {[%emt 0:00:20]} 12. Qxe2 {[%emt 0:00:02]} b6 {[%emt 0:02:10]} 13. Nf2 {[%emt 0:02:33]} Qd7 {[%emt 0:04:31]} 14. Rad1 {[%emt 0:06:18]} Bb7 {[%emt 0:02:35]} 15. Qc2 {[%emt 0:00:20]} Rae8 {[%emt 0:08:36]} 16. d4 {[%emt 0:11:22]} fxe4 {[%emt 0:01:19]} 17. Nxe4 {[%emt 0:00:16]} Nd5 {[%emt 0:01:35]} 18. Bc1 {[%emt 0:05:09]} c4 {[%emt 0:04:08]} 19. Neg5 {[%emt 0:08:38]} Bf6 {[%emt 0:14:04]} 20. Rde1 {[%emt 0:01:31]} Bd8 {[%emt 0:01:41]} 21. Nh3 {[%emt 0:04:47]} Kg7 {[%emt 0:02:01]} 22. Qe2 {[%emt 0:03:11]} b5 {[%emt 0:02:27]} 23. Nfg5 {[%emt 0:00:40]} Bc8 {[%emt 0:01:14]} 24. Qf3 {[%emt 0:09:10]} Nf6 {[%emt 0:04:34]} 25. Ne4 {[%emt 0:15:20]} Nxe4 {[%emt 0:01:36]} 26. Qxe4 {[%emt 0:00:48]} Bb7 {[%emt 0:00:22]} 27. Qe2 {[%emt 0:01:02]} Bd5 {[%emt 0:10:43]} 28. Qg4 {[%emt 0:01:34]} Rf5 {[%emt 0:00:55]} 29. Nf2 {[%emt 0:04:56]} a5 {[%emt 0:00:22]} 30. Nd1 {[%emt 0:00:24]} Rff8 {[%emt 0:01:03]} 31. Ne3 {[%emt 0:01:22]} Be4 {[%emt 0:00:42]} 32. Qg3 {[%emt 0:08:14]} Bd3 {[%emt 0:00:18]} 33. Rf3 {[%emt 0:01:57]} Bb6 {[%emt 0:01:53]} 34. Ng4 {[%emt 0:01:05]} Bf5 {[%emt 0:01:36]} 35. Rfe3 {[%emt 0:00:01]} e5 {[%emt 0:02:17]} 36. fxe5 {[%emt 0:03:23]} Bxg4 {[%emt 0:00:24]} 37. exd6 {[%emt 0:00:17]} Rxe3 {[%emt 0:02:15]} 38. Bxe3 {[%emt 0:01:44]} Bd8 {[%emt 0:01:50]} 39. Bf4 {[%emt 0:00:26]} Bf5 {[%emt 0:05:02]} 40. Qe3 {[%emt 0:00:19]} Kf7 {[%emt 0:02:20]} 41. Qe5 {[%emt 0:30:42]} Re8 {[%emt 0:32:11]} 42. Qd5+ {[%emt 0:00:05]} Be6 {[%emt 0:00:20]} 43. Qf3 {[%emt 0:00:03]} Kg8 {[%emt 0:00:39]} 44. Re5 {[%emt 0:00:00]} Bf7 {[%emt 0:00:00]} 45. Rc5 {[%emt 0:00:00]} Be6 {[%emt 0:00:00]} 46. Re5 {[%emt 0:00:00]} Bf7 {[%emt 0:00:00]} 47. Rc5 {[%emt 0:00:00]} 1/2-1/2

[Event "Czech Juniors Boys 2024"]
[Site "Jaromerice nad Rokytnou"]
[Date "2024.03.11"]
[Round "5.3"]
[White "Skypala, Ondrej"]
[Black "Jun, Rudolf"]
[Result "1/2-1/2"]
[ECO "A29"]
[WhiteElo "2234"]
[BlackElo "2243"]
[Annotator "RC"]
[PlyCount "62"]
[EventDate "2024.03.10"]
[EventType "tourn"]
[EventCountry "CZE"]
[SourceTitle "playchess.com"]
[Source "ChessBase"]
[SourceQuality "1"]
[TimeControl "40/5400+30:1800+30"]

1. c4 {[%emt 0:00:02]} Nf6 {[%emt 0:00:12]} 2. g3 {[%emt 0:00:04]} e5 {[%emt 0:00:15]} 3. Bg2 {[%emt 0:00:04]} d5 {[%emt 0:00:14]} 4. cxd5 {[%emt 0:00:04]} Nxd5 {[%emt 0:00:09]} 5. Nc3 {[%emt 0:00:03]} Nxc3 {[%emt 0:00:09]} 6. bxc3 {[%emt 0:00:08]} Nc6 {[%emt 0:00:46]} 7. d3 {[%emt 0:01:25]} Bc5 {[%emt 0:04:39]} 8. Nf3 {[%emt 0:00:20]} O-O {[%emt 0:05:03]} 9. O-O {[%emt 0:00:05]} Qf6 {[%emt 0:04:35]} 10. Qa4 {[%emt 0:04:01]} Bd7 {[%emt 0:03:56]} 11. Rb1 {[%emt 0:04:03]} Bb6 {[%emt 0:13:17]} 12. Qh4 {[%emt 0:01:01]} Qxh4 {[%emt 0:01:40]} 13. Nxh4 {[%emt 0:00:06]} Be6 {[%emt 0:00:27]} 14. Ba3 {[%emt 0:00:45]} Rfd8 {[%emt 0:00:55]} 15. Rb2 {[%emt 0:00:06]} Bd5 {[%emt 0:04:44]} 16. c4 {[%emt 0:01:25]} Bxg2 {[%emt 0:00:08]} 17. Kxg2 {[%emt 0:00:11]} e4 {[%emt 0:07:24]} 18. dxe4 {[%emt 0:02:47]} Rd4 {[%emt 0:00:47]} 19. c5 {[%emt 0:01:05]} Ba5 {[%emt 0:00:08]} 20. Rxb7 {[%emt 0:00:47]} Rxe4 {[%emt 0:00:53]} 21. e3 {[%emt 0:01:15]} Ra4 {[%emt 0:00:32]} 22. Rb3 {[%emt 0:00:09]} Rd8 {[%emt 0:00:31]} 23. Nf3 {[%emt 0:00:32]} f6 {[%emt 0:01:24]} 24. Rc1 {[%emt 0:02:47]} Kf7 {[%emt 0:01:17]} 25. Kf1 {[%emt 0:00:36]} g5 {[%emt 0:00:09]} 26. h3 {[%emt 0:03:36]} h5 {[%emt 0:00:49]} 27. g4 {[%emt 0:00:38]} hxg4 {[%emt 0:01:11]} 28. hxg4 {[%emt 0:00:08]} Rxg4 {[%emt 0:01:46]} 29. Bb2 {[%emt 0:00:53]} Rb4 {[%emt 0:00:12]} 30. Rxb4 {[%emt 0:04:01]} Bxb4 {[%emt 0:00:21]} 31. Ke2 {[%emt 0:00:46]} Ke6 {[%emt 0:01:24]} 1/2-1/2

[Event "Czech Juniors Boys 2024"]
[Site "Jaromerice nad Rokytnou"]
[Date "2024.03.11"]
[Round "5.4"]
[White "Paseka, Matyas"]
[Black "Jares, Michal"]
[Result "0-1"]
[ECO "B19"]
[WhiteElo "2233"]
[BlackElo "2347"]
[Annotator "RC"]
[PlyCount "57"]
[EventDate "2024.03.10"]
[EventType "tourn"]
[EventCountry "CZE"]
[SourceTitle "playchess.com"]
[Source "ChessBase"]
[SourceQuality "1"]
[TimeControl "40/5400+30:1800+30"]

1. e4 {[%emt 0:00:04]} c6 {[%emt 0:00:01]} 2. d4 {[%emt 0:00:19]} d5 {[%emt 0:00:03]} 3. Nc3 {[%emt 0:00:05]} dxe4 {[%emt 0:00:06]} 4. Nxe4 {[%emt 0:00:04]} Bf5 {[%emt 0:00:10]} 5. Ng3 {[%emt 0:00:13]} Bg6 {[%emt 0:00:02]} 6. h4 {[%emt 0:01:35]} h6 {[%emt 0:00:03]} 7. Nf3 {[%emt 0:00:23]} e6 {[%emt 0:00:15]} 8. h5 {[%emt 0:00:09]} Bh7 {[%emt 0:00:01]} 9. Bd3 {[%emt 0:00:12]} Bxd3 {[%emt 0:00:04]} 10. Qxd3 {[%emt 0:00:06]} Nd7 {[%emt 0:02:47]} 11. Bd2 {[%emt 0:00:47]} Ngf6 {[%emt 0:00:56]} 12. O-O-O {[%emt 0:00:21]} Be7 {[%emt 0:01:06]} 13. Kb1 {[%emt 0:01:57]} O-O {[%emt 0:01:22]} 14. Ne4 {[%emt 0:01:19]} Nxe4 {[%emt 0:01:31]} 15. Qxe4 {[%emt 0:00:07]} Nf6 {[%emt 0:00:25]} 16. Qe2 {[%emt 0:00:12]} Qd5 {[%emt 0:03:15]} 17. c4 {[%emt 0:15:02]} Qe4+ {[%emt 0:00:23]} 18. Qxe4 {[%emt 0:00:07]} Nxe4 {[%emt 0:00:03]} 19. Be3 {[%emt 0:00:18]} Rad8 {[%emt 0:10:50]} 20. g4 {[%emt 0:10:48]} f5 {[%emt 0:07:26]} 21. gxf5 {[%emt 0:41:53]} Rxf5 {[%emt 0:00:04]} 22. Nh4 {[%emt 0:03:50]} Rxh5 {[%emt 0:04:02]} 23. Ng6 {[%emt 0:00:11]} Rxh1 {[%emt 0:00:03]} 24. Nxe7+ {[%emt 0:00:11]} Kf7 {[%emt 0:00:03]} 25. Rxh1 {[%emt 0:00:11]} Kxe7 {[%emt 0:00:05]} 26. Kc2 {[%emt 0:02:30]} Nd6 {[%emt 0:02:15]} 27. Kd3 {[%emt 0:00:40]} Nf5 {[%emt 0:00:17]} 28. Ke4 {[%emt 0:00:09]} Kf6 {[%emt 0:02:44]} 29. f4 {[%emt 0:03:22]} 0-1

[Event "Czech Juniors Boys 2024"]
[Site "Jaromerice nad Rokytnou"]
[Date "2024.03.11"]
[Round "5.5"]
[White "Bokhnak, Timofey"]
[Black "Frank, Adam"]
[Result "1/2-1/2"]
[ECO "B52"]
[WhiteElo "2241"]
[BlackElo "2284"]
[Annotator "RC"]
[PlyCount "90"]
[EventDate "2024.03.10"]
[EventType "tourn"]
[EventCountry "CZE"]
[SourceTitle "playchess.com"]
[Source "ChessBase"]
[SourceQuality "1"]
[TimeControl "40/5400+30:1800+30"]

1. e4 {[%emt 0:00:05]} c5 {[%emt 0:00:03]} 2. Nf3 {[%emt 0:00:14]} d6 {[%emt 0:00:08]} 3. Bb5+ {[%emt 0:00:33]} Bd7 {[%emt 0:00:05]} 4. Bxd7+ {[%emt 0:00:10]} Qxd7 {[%emt 0:00:03]} 5. O-O {[%emt 0:00:35]} Nf6 {[%emt 0:00:06]} 6. Qe2 {[%emt 0:00:47]} Nc6 {[%emt 0:00:08]} 7. c3 {[%emt 0:00:05]} e6 {[%emt 0:00:56]} 8. d4 {[%emt 0:00:26]} cxd4 {[%emt 0:01:24]} 9. cxd4 {[%emt 0:00:07]} d5 {[%emt 0:00:02]} 10. e5 {[%emt 0:00:37]} Ne4 {[%emt 0:00:09]} 11. Nbd2 {[%emt 0:00:40]} Nxd2 {[%emt 0:01:12]} 12. Bxd2 {[%emt 0:00:05]} Be7 {[%emt 0:00:04]} 13. Rfc1 {[%emt 0:09:09]} O-O {[%emt 0:01:13]} 14. Rc3 {[%emt 0:01:08]} Rfc8 {[%emt 0:05:09]} 15. a3 {[%emt 0:01:53]} a6 {[%emt 0:07:28]} 16. Qd3 {[%emt 0:14:53]} h6 {[%emt 0:15:10]} 17. h3 {[%emt 0:04:07]} Na7 {[%emt 0:01:31]} 18. Rac1 {[%emt 0:01:13]} Nb5 {[%emt 0:20:47]} 19. Rxc8+ {[%emt 0:02:13]} Rxc8 {[%emt 0:00:04]} 20. Rxc8+ {[%emt 0:05:51]} Qxc8 {[%emt 0:00:04]} 21. Kf1 {[%emt 0:05:56]} Qc6 {[%emt 0:00:55]} 22. Ke2 {[%emt 0:04:22]} Qb6 {[%emt 0:01:38]} 23. Kf1 {[%emt 0:03:25]} Na7 {[%emt 0:00:20]} 24. Qc3 {[%emt 0:03:55]} Qb5+ {[%emt 0:02:09]} 25. Kg1 {[%emt 0:00:06]} Nc6 {[%emt 0:00:12]} 26. Ne1 {[%emt 0:04:52]} Bd8 {[%emt 0:04:41]} 27. Nc2 {[%emt 0:09:05]} Ba5 {[%emt 0:04:33]} 28. b4 {[%emt 0:00:09]} Bb6 {[%emt 0:00:03]} 29. Be3 {[%emt 0:01:36]} a5 {[%emt 0:05:49]} 30. Kh2 {[%emt 0:01:54]} a4 {[%emt 0:03:13]} 31. Kg1 {[%emt 0:05:33]} Qe2 {[%emt 0:00:49]} 32. Kh2 {[%emt 0:00:44]} Qf1 {[%emt 0:00:18]} 33. Ne1 {[%emt 0:03:37]} Bxd4 {[%emt 0:12:50]} 34. Bxd4 {[%emt 0:07:31]} Nxd4 {[%emt 0:00:08]} 35. Qxd4 {[%emt 0:01:35]} Qxe1 {[%emt 0:00:04]} 36. b5 {[%emt 0:00:05]} Qe2 {[%emt 0:00:57]} 37. Qxa4 {[%emt 0:00:54]} Qxe5+ {[%emt 0:00:05]} 38. g3 {[%emt 0:01:00]} d4 {[%emt 0:07:46]} 39. Qa8+ {[%emt 0:01:16]} Kh7 {[%emt 0:00:03]} 40. Qxb7 {[%emt 0:01:34]} d3 {[%emt 0:00:04]} 41. b6 {[%emt 0:33:22]} Qd5 {[%emt 0:26:04]} 42. Qxd5 {[%emt 0:00:00]} exd5 {[%emt 0:00:04]} 43. b7 {[%emt 0:00:00]} d2 {[%emt 0:00:03]} 44. b8=Q {[%emt 0:00:00]} d1=Q {[%emt 0:00:04]} 45. Qf4 {[%emt 0:00:00]} d4 {[%emt 0:06:38]} 1/2-1/2

[Event "Czech Juniors Boys 2024"]
[Site "Jaromerice nad Rokytnou"]
[Date "2024.03.11"]
[Round "5.6"]
[White "Bohacek, Jan Andrej"]
[Black "Hak, David"]
[Result "1-0"]
[ECO "E69"]
[WhiteElo "2140"]
[BlackElo "2283"]
[Annotator "RC"]
[PlyCount "73"]
[EventDate "2024.03.10"]
[EventType "tourn"]
[EventCountry "CZE"]
[SourceTitle "playchess.com"]
[Source "ChessBase"]
[SourceQuality "1"]
[TimeControl "40/5400+30:1800+30"]

1. c4 {[%emt 0:00:31]} g6 {[%emt 0:00:24]} 2. d4 {[%emt 0:00:36]} Nf6 {[%emt 0:00:08]} 3. Nf3 {[%emt 0:00:06]} Bg7 {[%emt 0:00:07]} 4. g3 {[%emt 0:00:41]} O-O {[%emt 0:00:09]} 5. Bg2 {[%emt 0:00:07]} d6 {[%emt 0:03:17]} 6. Nc3 {[%emt 0:01:45]} Nbd7 {[%emt 0:00:30]} 7. O-O {[%emt 0:00:52]} c6 {[%emt 0:00:06]} 8. e4 {[%emt 0:00:38]} e5 {[%emt 0:00:10]} 9. h3 {[%emt 0:01:33]} Qb6 {[%emt 0:04:15]} 10. c5 {[%emt 0:00:23]} dxc5 {[%emt 0:00:07]} 11. dxe5 {[%emt 0:00:08]} Ne8 {[%emt 0:00:11]} 12. Na4 {[%emt 0:00:32]} Qc7 {[%emt 0:12:39]} 13. e6 {[%emt 0:04:02]} fxe6 {[%emt 0:00:49]} 14. Ng5 {[%emt 0:01:27]} Ne5 {[%emt 0:20:24]} 15. h4 {[%emt 0:26:24]} c4 {[%emt 0:09:05]} 16. f4 {[%emt 0:07:20]} Nd3 {[%emt 0:01:08]} 17. e5 {[%emt 0:00:23]} b5 {[%emt 0:08:23]} 18. Nc3 {[%emt 0:00:30]} Qb6+ {[%emt 0:01:52]} 19. Kh2 {[%emt 0:00:37]} Nc7 {[%emt 0:08:51]} 20. h5 {[%emt 0:11:00]} h6 {[%emt 0:06:42]} 21. Nh3 {[%emt 0:02:43]} Nd5 {[%emt 0:03:50]} 22. Qg4 {[%emt 0:19:51]} Nxc1 {[%emt 0:03:00]} 23. Raxc1 {[%emt 0:00:19]} gxh5 {[%emt 0:07:26]} 24. Qg6 {[%emt 0:01:04]} Ne7 {[%emt 0:02:45]} 25. Qxh5 {[%emt 0:00:30]} Bb7 {[%emt 0:00:39]} 26. g4 {[%emt 0:01:30]} c5 {[%emt 0:01:23]} 27. Ne4 {[%emt 0:00:53]} Rad8 {[%emt 0:02:20]} 28. g5 {[%emt 0:02:14]} Bxe4 {[%emt 0:00:48]} 29. Bxe4 {[%emt 0:00:08]} Rd2+ {[%emt 0:00:21]} 30. Kh1 {[%emt 0:03:38]} Nf5 {[%emt 0:00:21]} 31. Rg1 {[%emt 0:01:12]} Qd8 {[%emt 0:01:05]} 32. gxh6 {[%emt 0:01:53]} Qd4 {[%emt 0:00:06]} 33. Ng5 {[%emt 0:09:57]} Nxh6 {[%emt 0:02:41]} 34. Qg6 {[%emt 0:01:30]} Rf5 {[%emt 0:00:56]} 35. Qh7+ {[%emt 0:00:20]} Kf8 {[%emt 0:00:01]} 36. Nxe6+ {[%emt 0:00:18]} Ke7 {[%emt 0:00:54]} 37. Rxg7+ {[%emt 0:00:13]} 1-0